fUST/lending_fUST_20260412
["ID","MTS","AMOUNT","RATE_DAILY","PERIOD"]
[420298814,1775932248397,-1000.0,0.00013699,2]
[420298815,1775932248408,-679.777328,0.00013699,2]
[420298816,1775932248421,-679.777328,0.00013699,2]
[420298817,1775932248432,-679.777328,0.00013699,2]
[420298818,1775932248445,-679.777328,0.00013699,2]
[420298819,1775932248457,-679.777328,0.00013699,2]
[420298820,1775932248466,-679.777328,0.00013699,2]
[420298821,1775932248485,-679.777328,0.00013699,2]
[420298822,1775932248506,-679.777328,0.00013699,2]
[420298823,1775932248517,-679.777328,0.00013699,2]
[420298824,1775932248527,-679.777328,0.00013699,2]
[420298825,1775932248545,-679.777328,0.00013699,2]
[420298826,1775932248556,-679.777328,0.00013699,2]
[420298827,1775932248579,-679.777328,0.00013699,2]
[420298828,1775932248588,-679.777328,0.00013699,2]
[420298829,1775932248607,-679.777328,0.00013699,2]
[420298830,1775932248620,-679.777328,0.00013699,2]
[420298831,1775932248631,-679.777328,0.00013699,2]
[420298832,1775932248652,-679.777328,0.00013699,2]
[420298833,1775932248665,-679.777328,0.00013699,2]
[420298834,1775932248680,-679.777321,0.00013699,2]
[420298835,1775932248694,-24336.4076291,0.00013699,2]
[420298836,1775932248703,-500.0,0.00013699,2]
[420298837,1775932248715,-1000.0,0.00013699,2]
[420298838,1775932248730,-500.0,0.00013699,2]
[420298839,1775932248739,-702.6050767,0.00013711,2]
[420298840,1775932248749,-197.75728126,0.00013728,2]
[420298841,1775932248764,-6215.28528291,0.00013785,2]
[420298842,1775932248774,-1435.00374645,0.00013908,2]
[420298843,1775932248783,-150.0,0.0001413,2]
[420298844,1775932248793,-184.0,0.00014483,2]
[420298845,1775932248810,-441.0,0.00014483,2]
[420298846,1775932248821,-210.637137,0.00014658,2]
[420298847,1775932248837,-8562.9793968,0.00014751,2]
[420298848,1775932248851,-1435.00374645,0.00014803,2]
[420298849,1775932248861,-600.72551238,0.000149,2]
[420298850,1775932248876,-2272.0,0.00014978,2]
[420298851,1775932248887,-2272.0,0.00014991,2]
[420298852,1775932248897,-2272.0,0.00014995,2]
[420298853,1775932248910,-2272.0,0.00014997,2]
[420298854,1775932248920,-454.0,0.00015,2]
[420298855,1775932248933,-1028.82063018,0.00015,2]
[420298856,1775932248946,-152.39912448,0.00015,2]
[420298857,1775932248969,-1134.0,0.00015,2]
[420298858,1775932248982,-702.6050767,0.00015014,2]
[420298859,1775932248999,-2272.0,0.00015032,2]
[420298860,1775932249016,-2272.0,0.00015032,2]
[420298861,1775932249027,-2272.0,0.00015033,2]
[420298862,1775932249041,-2272.0,0.00015057,2]
[420298863,1775932249067,-151.0,0.00015068,2]
[420298864,1775932249082,-426.789192,0.00015068,2]
[420298865,1775932249119,-2272.0,0.00015082,2]
[420298866,1775932249129,-2272.0,0.00015092,2]
[420298867,1775932249148,-2272.0,0.00015112,2]
[420298868,1775932249160,-2272.0,0.00015161,2]
[420298869,1775932249181,-2272.0,0.00015167,2]
[420298870,1775932249192,-2272.0,0.00015231,2]
[420298871,1775932249201,-2272.0,0.00015253,2]
[420298872,1775932249211,-2272.0,0.00015315,2]
[420298873,1775932249229,-2272.0,0.00015317,2]
[420298874,1775932249239,-2272.0,0.00015323,2]
[420298875,1775932249248,-797.26141044,0.00015347,2]
[420298876,1775932249261,-2272.0,0.0001535,2]
[420298877,1775932249274,-2272.0,0.00015366,2]
[420298878,1775932249283,-2272.0,0.00015395,2]
[420298879,1775932249302,-2272.0,0.0001541,2]
[420298880,1775932249314,-2272.0,0.00015422,2]
[420298881,1775932249331,-2272.0,0.00015454,2]
[420298882,1775932249343,-2272.0,0.00015461,2]
[420298883,1775932249355,-1435.00374645,0.00015699,2]
[420298884,1775932249376,-151.0,0.000157,2]
[420298885,1775932249394,-500.0,0.0001571,2]
[420298886,1775932249407,-500.7804058,0.0001571,2]
[420298887,1775932249427,-1298.38,0.00015799,2]
[420298888,1775932249436,-1298.38,0.00015799,2]
[420298889,1775932249447,-1298.38,0.00015799,2]
[420298890,1775932249463,-1298.38,0.00015799,2]
[420298891,1775932249476,-1298.38,0.00015799,2]
[420298892,1775932249489,-1298.38,0.00015799,2]
[420298893,1775932249499,-1298.38,0.00015799,2]
[420298894,1775932249508,-1298.38,0.00015799,2]
[420298895,1775932249520,-1298.38,0.00015799,2]
[420298896,1775932249536,-1298.38,0.00015799,2]
[420298897,1775932249546,-1298.38,0.00015799,2]
[420298898,1775932249558,-1298.38,0.00015799,2]
[420298899,1775932249571,-1298.38,0.00015799,2]
[420298900,1775932249583,-1298.38,0.00015799,2]
[420298901,1775932249596,-1298.38,0.00015799,2]
[420298902,1775932249606,-1298.38,0.00015799,2]
[420298903,1775932249622,-1298.38,0.00015799,2]
[420298904,1775932249636,-1298.38,0.00015799,2]
[420298905,1775932249657,-1298.38,0.00015799,2]
[420298906,1775932249668,-1298.38,0.00015799,2]
[420298907,1775932249686,-1298.38,0.00015799,2]
[420298908,1775932249703,-1298.38,0.00015799,2]
[420298909,1775932249714,-1298.38,0.00015799,2]
[420298910,1775932249740,-1924.95,0.00015799,2]
[420298911,1775932249751,-854.64127412,0.000158,2]
[420298912,1775932249766,-324.9182606,0.0001589,2]
[420298913,1775932249778,-7987.69912014,0.00015981,2]
[420298914,1775932249794,-200.0,0.00016,2]
[420298915,1775932249807,-7000.0,0.00016,2]
[420298916,1775932249816,-218.05168798,0.00016,2]
[420298917,1775932249831,-1518.788142,0.00016,2]
[420298918,1775932249847,-150.01,0.00016137,2]
[420298919,1775932249857,-500.0,0.00016286,2]
[420298920,1775932249875,-456.0,0.0001629,2]
[420298921,1775932249889,-255.0,0.0001629,2]
[420298922,1775932249899,-571.0,0.0001629,2]
[420298923,1775932249911,-702.6050767,0.00016318,2]
[420298924,1775932249945,-711.1945721,0.00016378,2]
[420298925,1775932249955,-151.0,0.000164,2]
[420298926,1775932249990,-1557.0,0.00016438,2]
[420298927,1775932250000,-151.0,0.00016438,2]
[420298928,1775932250018,-151.0,0.00016438,2]
[420298929,1775932250031,-151.0,0.00016438,2]
[420298930,1775932250046,-151.0,0.00016438,2]
[420298931,1775932250060,-151.0,0.00016438,2]
[420298932,1775932250070,-151.0,0.00016438,2]
[420298933,1775932250079,-169.066584,0.00016438,2]
[420298934,1775932250103,-1524.425939,0.00016438,2]
[420298935,1775932250118,-1524.425939,0.00016438,2]
[420298936,1775932250138,-1524.425939,0.00016438,2]
[420298937,1775932250156,-1524.425939,0.00016438,2]
[420298938,1775932250168,-1524.425939,0.00016438,2]
[420298939,1775932250187,-1524.425939,0.00016438,2]
[420298940,1775932250205,-1524.425939,0.00016438,2]
[420298941,1775932250223,-1524.425939,0.00016438,2]
[420298942,1775932250240,-1524.425939,0.00016438,2]
[420298943,1775932250258,-1524.425939,0.00016438,2]
[420298944,1775932250272,-1524.425939,0.00016438,2]
[420298945,1775932250303,-1524.425939,0.00016438,2]
[420298946,1775932250315,-1524.425939,0.00016438,2]
[420298947,1775932250342,-1524.425939,0.00016438,2]
[420298948,1775932250354,-1524.425939,0.00016438,2]
[420298949,1775932250378,-1524.425939,0.00016438,2]
[420298950,1775932250398,-1524.425939,0.00016438,2]
[420298951,1775932250418,-1524.425939,0.00016438,2]
[420298952,1775932250438,-1524.425939,0.00016438,2]
[420298953,1775932250457,-1524.425938,0.00016438,2]
[420298954,1775932250479,-151.0,0.00016438,2]
[420298955,1775932250495,-151.0,0.00016438,2]
[420298956,1775932250520,-1000.0,0.000165,2]
[420298957,1775932250567,-325.1876519,0.00016708,2]
[420298958,1775932250612,-250.0,0.00016712,3]
[420298959,1775932250648,-1557.0,0.00016712,2]
[420298960,1775932250662,-8562.9793968,0.00016777,2]
[420298961,1775932250692,-160.0,0.00016986,3]
[420298962,1775932250707,-160.0,0.00016986,3]
[420298963,1775932250726,-11335.32418402,0.00016986,3]
[420298964,1775932300613,-441.0,0.00011161,2]
[420298965,1775932303765,900.01816066,0.000119,2]
[420299249,1775933441303,-1770.13854608,0.00011061,2]
[420299251,1775933441318,-472.72366957,0.00011124,2]
[420299253,1775933441327,-184.0,0.00011161,2]
[420299255,1775933441340,-441.0,0.00011161,2]
[420299257,1775933441349,-557.81393009,0.00013124,2]
[420299259,1775933441362,-166.94172779,0.00013365,14]
[420299311,1775933443875,-13.26914312,0.00013365,14]
[420299312,1775933443888,-160.0,0.00013421,2]
[420299313,1775933443913,-160.0,0.00013437,2]
[420299314,1775933443921,-156.0,0.00013699,2]
[420299315,1775933443935,-180.0,0.00013699,2]
[420299316,1775933443950,-217.90670372,0.00013699,2]
[420299317,1775933443959,-1000.0,0.00013699,2]
[420299318,1775933443968,-300.0,0.00014151,2]
[420299319,1775933443985,-300.0,0.00014151,2]
[420299320,1775933443994,-1149.0,0.00014151,2]
[420299321,1775933444004,-429.64844743,0.00014152,2]
[420299322,1775933444013,-2150.738,0.00014152,2]
[420299323,1775933444022,-169.93169881,0.00015,2]
[420299365,1775933446575,-478.0,0.00015,2]
[420299367,1775933446592,-1055.0,0.00015,2]
[420299368,1775933446615,-341.431353,0.00015068,2]
[420299370,1775933446633,-642.90419062,0.00015124,2]
[420299372,1775933446649,-160.0,0.00016135,2]
[420299373,1775933446660,-1205.0,0.0001629,2]
[420299375,1775933446678,-474.12971473,0.00016378,2]
[420299376,1775933446692,-450.87,0.00016378,2]
[420299377,1775933446703,-250.0,0.00016767,3]
[420299378,1775933446722,-632.21706568,0.00016784,2]
[420299387,1775934419287,-5000.0,0.00010643,2]
[420299388,1775934419322,-569.0,0.00010643,2]
[420299389,1775934419346,-457.76411019,0.0001075,2]
[420299390,1775934419369,-300.0,0.00010781,2]
[420299391,1775934419393,-793.25975094,0.00010915,2]
[420299392,1775934419419,-1531.42447457,0.00011015,2]
[420299393,1775934419441,-300.0,0.00011046,2]
[420299394,1775934419462,-300.0,0.00011046,2]
[420299395,1775934419485,-1200.0,0.00011047,2]
[420299396,1775934419506,-300.0,0.00011047,2]
[420299397,1775934419529,-300.0,0.00011047,2]
[420299398,1775934419554,-2269.58919821,0.00011115,2]
[420299399,1775934419580,-184.0,0.00011162,2]
[420299400,1775934419604,-441.0,0.00011162,2]
[420299401,1775934419631,-2633.89441055,0.00011215,2]
[420299402,1775934419661,-238.51582654,0.00011315,2]
[420299429,1775934634610,-2769.2380953,0.00011315,2]
[420299430,1775934634623,-3112.57790394,0.00011415,2]
[420299431,1775934634640,-300.0,0.00012576,2]
[420299432,1775934634650,-782.0,0.00012576,2]
[420299433,1775934634662,-3745.91864547,0.00012577,2]
[420299434,1775934634675,-540.16165003,0.0001275,2]
[420299435,1775934634691,-176.14517664,0.0001317,5]
[420299436,1775934634705,-3498.67156805,0.0001366,2]
[420299437,1775934634743,-571.27332292,0.0001366,2]
[420299438,1775934634785,-500.0,0.00013698,2]
[420299439,1775934634796,-182.04327978,0.00013699,2]
[420299440,1775934634807,-833.120464,0.00013699,2]
[420299441,1775934634820,-1000.0,0.00013699,2]
[420299442,1775934634840,-160.0,0.00013805,2]
[420299443,1775934634858,-1000.0,0.00013863,2]
[420299444,1775934634867,-228.72315425,0.00014013,2]
[420299445,1775934634878,-2150.738,0.00014013,2]
[420299446,1775934634919,-184.0,0.00014162,2]
[420299447,1775934634934,-441.0,0.00014162,2]
[420299448,1775934634944,-5715.17056289,0.0001464,2]
[420299449,1775934634956,-234.58251964,0.00014641,2]
[420299450,1775934634967,-500.0,0.00014739,2]
[420299451,1775934634985,-181.3,0.00014739,2]
[420299452,1775934634999,-500.0,0.00014739,2]
[420299453,1775934635008,-610.32897065,0.00014739,2]
[420299454,1775934635024,-529.47583405,0.00014739,2]
[420299455,1775934635035,-610.32897065,0.00014739,2]
[420299456,1775934635044,-500.0,0.00014739,2]
[420299457,1775934635053,-500.0,0.00014739,2]
[420299458,1775934635067,-610.32897065,0.00014739,2]
[420299459,1775934635099,-610.32897065,0.00014739,2]
[420299460,1775934635109,-500.0,0.00014739,2]
[420299461,1775934635124,-500.0,0.00014739,2]
[420299462,1775934635164,-610.32897065,0.00014739,2]
[420299463,1775934635173,-610.32897065,0.00014739,2]
[420299464,1775934635183,-500.0,0.00014739,2]
[420299465,1775934635196,-500.0,0.00014739,2]
[420299466,1775934635209,-500.0,0.00014739,2]
[420299467,1775934635219,-534.54624683,0.00014739,2]
[420299468,1775934635228,-610.32897065,0.00014739,2]
[420299469,1775934635241,-610.32897065,0.00014739,2]
[420299470,1775934635275,-4484.08336911,0.00014742,2]
[420299471,1775934635287,-622.55918986,0.0001475,2]
[420299472,1775934635296,-357.18571931,0.00015,2]
[420299473,1775934635305,-1056.0,0.00015,2]
[420299474,1775934635326,-458.0,0.00015,2]
[420299475,1775934635336,-160.0,0.00015,2]
[420299476,1775934635348,-234.58251964,0.00015102,2]
[420299477,1775934635362,-314.0,0.00015412,2]
[420299478,1775934635373,-626.0,0.00015412,2]
[420299479,1775934635382,-500.0,0.00015466,2]
[420299480,1775934635396,-168.0,0.00015466,2]
[420299481,1775934635413,-168.0,0.00015526,2]
[420299482,1775934635423,-234.58251964,0.00015563,2]
[420299483,1775934635436,-168.0,0.00015621,2]
[420299484,1775934635446,-168.0,0.00015748,2]
[420299485,1775934635465,-168.0,0.00015767,2]
[420299486,1775934635474,-4548.62838448,0.00015825,3]
[420299487,1775934635484,-234.58251964,0.00016023,2]
[420299488,1775934635500,-168.0,0.00016049,2]
[420299489,1775934635510,-5715.17056286,0.00016103,2]
[420299490,1775934635520,-150.01,0.00016137,2]
[420299491,1775934635530,-316.08647649,0.00016448,2]
[420299492,1775934635544,-234.58251964,0.00016484,2]
[420299493,1775934635554,-655.19,0.00016574,3]
[420299494,1775934635565,-327.59,0.00016574,3]
[420299495,1775934635573,-163.8,0.00016574,3]
[420299496,1775934635585,-491.4,0.00016574,3]
[420299497,1775934635596,-41181.58184421,0.00016584,2]
[420299498,1775934635609,-7700.88460662,0.00016584,2]
[420299499,1775934635648,-665.05,0.00016584,2]
[420299521,1775934639075,-610.32897065,0.00014739,2]
[420299523,1775934639092,-610.32897065,0.00014739,2]
[420299525,1775934639102,-610.32897065,0.00014739,2]
[420299527,1775934639133,-420.0,0.00015621,2]
[420299529,1775934639143,-210.72431766,0.00016448,2]
[420299531,1775934639162,-275386.84688177,0.00016584,2]
[420299533,1775934639177,-211.056,0.00016584,2]
[420299535,1775934639189,-1012.0,0.00016584,2]
[420299537,1775934639207,-500.0,0.00016682,2]
[420299539,1775934639223,-500.0,0.00016682,2]
[420299541,1775934639249,-500.0,0.00016682,2]
[420299543,1775934639261,-500.0,0.00016683,2]
[420299545,1775934639278,-500.0,0.00016683,2]
[420299546,1775934639293,-500.0,0.00016684,2]
[420299548,1775934639308,-500.0,0.00016684,2]
[420299550,1775934639328,-500.0,0.00016684,2]
[420299552,1775934639341,-500.0,0.00016684,2]
[420299554,1775934639398,-500.0,0.00016687,2]
[420299556,1775934639408,-500.0,0.00016699,2]
[420299558,1775934639425,-500.0,0.00016699,2]
[420299560,1775934639443,-500.0,0.00016699,2]
[420299562,1775934639452,-70010.376207,0.000167,2]
[420299564,1775934639467,-991.32,0.000167,2]
[420299566,1775934639481,-991.32,0.000167,2]
[420299568,1775934639496,-991.32,0.000167,2]
[420299570,1775934639530,-991.32,0.000167,2]
[420299572,1775934639541,-991.32,0.000167,2]
[420299574,1775934639575,-991.32,0.000167,2]
[420299576,1775934639585,-991.32,0.000167,2]
[420299578,1775934639595,-991.32,0.000167,2]
[420299580,1775934639609,-991.32,0.000167,2]
[420299582,1775934639622,-991.32,0.000167,2]
[420299584,1775934639632,-991.32,0.000167,2]
[420299586,1775934639641,-991.32,0.000167,2]
[420299588,1775934639660,-991.32,0.000167,2]
[420299590,1775934639670,-991.32,0.000167,2]
[420299592,1775934639680,-991.32,0.000167,2]
[420299594,1775934639689,-991.32,0.000167,2]
[420299596,1775934639707,-991.32,0.000167,2]
[420299597,1775934639717,-991.32,0.000167,2]
[420299598,1775934639727,-1056.25,0.000167,2]
[420299599,1775934639740,-704.9567297,0.0001675,2]
[420299600,1775934639754,-1086.82,0.00016784,3]
[420299602,1775934639764,-500.0,0.00016784,2]
[420299603,1775934639774,-1557.0,0.0001679,2]
[420299604,1775934639783,-250.0,0.00016795,3]
[420299605,1775934639795,-500.0,0.00016985,2]
[420299606,1775934639805,-500.0,0.00016985,2]
[420299607,1775934639817,-26664.67581598,0.00016986,3]
[420299608,1775934639826,-160.0,0.00016986,3]
[420299609,1775934639836,-160.0,0.00016986,3]
[420299610,1775934639866,-16222.76868307,0.00016986,3]
[420299614,1775934640198,-6403.73936459,0.00016986,3]
[420299615,1775934640210,-200.3,0.00016986,2]
[420299616,1775934640231,-200.3,0.00016986,2]
[420299617,1775934640250,-200.3,0.00016986,2]
[420299618,1775934640261,-200.57477509,0.00016986,2]
[420299619,1775934640279,-1000.0,0.00017,2]
[420299620,1775934640301,-1557.0,0.00017064,2]
[420299621,1775934640322,-600.0,0.0001712,2]
[420299622,1775934640427,-383.0,0.00017148,2]
[420299623,1775934640440,-500.0,0.00017161,2]
[420299624,1775934640452,-184.0,0.00017162,2]
[420299625,1775934640488,-441.0,0.00017162,2]
[420299626,1775934640498,-1557.0,0.00017338,2]
[420299627,1775934640526,-152.4874,0.00017428,2]
[420299630,1775934640550,-168.2,0.00017479,7]
[420299631,1775934640559,-160.0,0.000175,3]
[420299632,1775934640572,-160.0,0.000175,3]
[420299633,1775934640587,-1000.0,0.000175,2]
[420299634,1775934640604,-4002.29687773,0.00017566,2]
[420299673,1775934644230,-210.72431766,0.00016448,2]
[420299675,1775934644257,-1657.99210134,0.00017566,2]
[420299676,1775934644275,-54.88158379,0.00017566,2]
[420299678,1775934644296,-970.0,0.00017566,2]
[420299679,1775934644306,-1557.0,0.00017612,2]
[420299680,1775934644319,-180.0,0.00017808,2]
[420299681,1775934644332,-1557.0,0.00017886,2]
[420299682,1775934644344,-1310.38,0.00017944,3]
[420299683,1775934644357,-655.18,0.00017944,3]
[420299684,1775934644382,-327.6,0.00017944,3]
[420299685,1775934644392,-554.0505086,0.00017967,2]
[420299686,1775934644402,-2897.91117796,0.0001799,3]
[420299720,1775934646729,-210.72431767,0.00017215,2]
[420299722,1775934646750,-2141.26467144,0.0001782,2]
[420299725,1775934646803,-671.16,0.0001782,2]
[420299874,1775935831896,-5000.0,0.0001005,2]
[420299876,1775935831921,-418.8752766,0.00010255,2]
[420299878,1775935831930,-209.62318534,0.00010542,2]
[420299880,1775935831942,-184.0,0.00012139,2]
[420299882,1775935831955,-441.0,0.00012139,2]
[420299884,1775935831966,-494.27282639,0.00012255,2]
[420299886,1775935831975,-160.0,0.00013093,2]
[420299888,1775935831986,-179.52853272,0.00013566,2]
[420299890,1775935831999,-765.22443758,0.00013693,2]
[420299892,1775935832013,-387.77556242,0.00013693,2]
[420299894,1775935832022,-300.0,0.00013697,2]
[420299896,1775935832034,-300.0,0.00013697,2]
[420299898,1775935832046,-300.0,0.00013697,2]
[420299900,1775935832057,-200.0,0.00013698,2]
[420299902,1775935832066,-1000.0,0.00013699,2]
[420299904,1775935832077,-600.0,0.0001425,2]
[420299906,1775935832088,-569.67037617,0.00014255,2]
[420299909,1775935832098,-160.0,0.00015,2]
[420299911,1775935832108,-420.0,0.0001501,2]
[420299913,1775935832118,-420.0,0.0001501,2]
[420299916,1775935832130,-420.0,0.0001501,2]
[420299918,1775935832139,-537.6845,0.00015022,2]
[420299921,1775935832148,-1990.51832282,0.00015022,2]
[420299924,1775935832157,-557.5788265,0.00015077,2]
[420299925,1775935832170,-578.20924308,0.00015132,2]
[420299928,1775935832179,-184.0,0.00015139,2]
[420299930,1775935832189,-441.0,0.00015139,2]
[420299932,1775935832198,-720.0,0.00015675,2]
[420299935,1775935832208,-645.06792596,0.00016255,2]
[420299937,1775935832220,-500.0,0.00016358,2]
[420299939,1775935832229,-902.67922006,0.000167,2]
[420299941,1775935832238,-307.36855268,0.000167,2]
[420299943,1775935832248,-864.0,0.00017243,2]
[420299961,1775935832450,-168.845,0.00017808,2]
[420299963,1775935832470,-160.0,0.00017808,2]
[420299965,1775935832487,-4145.38887881,0.0001795,2]
[420299967,1775935832497,-250.0,0.00017973,3]
[420299969,1775935832520,-2158.49793898,0.0001799,3]
[420299971,1775935832534,-929.0,0.0001799,2]
[420299973,1775935832547,-422.0,0.0001799,2]
[420299975,1775935832560,-151.0,0.00018,2]
[420299977,1775935832582,-1101.742691,0.00018,2]
[420299979,1775935832594,-1000.0,0.00018,2]
[420299981,1775935832611,-367.9,0.00018,2]
[420299983,1775935832629,-796.13160383,0.00018035,2]
[420299985,1775935832639,-335.56,0.0001805,3]
[420299987,1775935832663,-500.0,0.00018058,2]
[420299989,1775935832678,-158.41574037,0.00018059,2]
[420299991,1775935832689,-500.0,0.00018059,2]
[420299993,1775935832714,-168.11772176,0.00018059,2]
[420299995,1775935832724,-500.0,0.00018059,2]
[420299997,1775935832734,-500.0,0.00018059,2]
[420299998,1775935832760,-500.0,0.00018059,2]
[420300001,1775935832770,-500.0,0.00018059,2]
[420300002,1775935832783,-500.0,0.00018059,2]
[420300004,1775935832803,-500.0,0.00018059,2]
[420300006,1775935832814,-500.0,0.00018059,2]
[420300008,1775935832823,-500.0,0.00018059,2]
[420300010,1775935832842,-500.0,0.00018059,2]
[420300012,1775935832854,-500.0,0.00018059,2]
[420300014,1775935832865,-500.0,0.00018059,2]
[420300016,1775935832879,-500.0,0.00018059,2]
[420300018,1775935832898,-500.0,0.00018059,2]
[420300020,1775935832910,-500.0,0.00018059,2]
[420300022,1775935832920,-500.0,0.00018059,2]
[420300024,1775935832942,-500.0,0.00018059,2]
[420300025,1775935832953,-500.0,0.00018059,2]
[420300027,1775935832965,-500.0,0.00018059,2]
[420300029,1775935832980,-500.0,0.00018059,2]
[420300031,1775935832991,-500.0,0.00018059,2]
[420300033,1775935833001,-500.0,0.00018059,2]
[420300034,1775935833018,-500.0,0.00018059,2]
[420300037,1775935833038,-500.0,0.00018059,2]
[420300038,1775935833047,-500.0,0.00018059,2]
[420300041,1775935833071,-500.0,0.00018059,2]
[420300043,1775935833082,-500.0,0.00018059,2]
[420300044,1775935833097,-500.0,0.00018059,2]
[420300047,1775935833127,-500.0,0.00018059,2]
[420300049,1775935833141,-500.0,0.00018059,2]
[420300050,1775935833171,-500.0,0.00018059,2]
[420300052,1775935833191,-500.0,0.00018059,2]
[420300054,1775935833211,-500.0,0.00018059,2]
[420300056,1775935833225,-500.0,0.00018059,2]
[420300058,1775935833246,-500.0,0.00018059,2]
[420300060,1775935833259,-500.0,0.00018059,2]
[420300062,1775935833273,-500.0,0.00018059,2]
[420300065,1775935833301,-500.0,0.00018059,2]
[420300066,1775935833316,-500.0,0.00018059,2]
[420300068,1775935833343,-500.0,0.00018059,2]
[420300070,1775935833357,-500.0,0.00018059,2]
[420300073,1775935833371,-500.0,0.00018059,2]
[420300075,1775935833385,-500.0,0.00018059,2]
[420300077,1775935833398,-500.0,0.00018059,2]
[420300079,1775935833411,-500.0,0.00018059,2]
[420300081,1775935833422,-500.0,0.00018059,2]
[420300083,1775935833434,-500.0,0.00018059,2]
[420300085,1775935833446,-500.0,0.00018059,2]
[420300087,1775935833457,-500.0,0.00018059,2]
[420300089,1775935833470,-500.0,0.00018059,2]
[420300091,1775935833481,-500.0,0.00018059,2]
[420300093,1775935833494,-500.0,0.00018059,2]
[420300095,1775935833506,-66.53994323,0.00018059,2]
[420300097,1775935833522,-410.37005677,0.00018059,2]
[420300099,1775935833537,-500.0,0.00018059,2]
[420300100,1775935833547,-500.0,0.00018059,2]
[420300101,1775935833558,-325.50613496,0.00018059,2]
[420300102,1775935833588,-174.49386504,0.00018059,2]
[420300103,1775935833599,-500.0,0.00018059,2]
[420300105,1775935833614,-500.0,0.00018059,2]
[420300107,1775935833627,-345.12606347,0.00018059,2]
[420300109,1775935833636,-500.0,0.00018059,2]
[420300111,1775935833658,-500.0,0.00018059,2]
[420300113,1775935833670,-52.11764831,0.00018059,2]
[420300150,1775935838350,-447.88235169,0.00018059,2]
[420300151,1775935838368,-500.0,0.00018059,2]
[420300152,1775935838389,-500.0,0.00018059,2]
[420300154,1775935838411,-500.0,0.00018059,2]
[420300155,1775935838425,-500.0,0.00018059,2]
[420300156,1775935838445,-458.82027602,0.00018059,2]
[420300157,1775935838461,-500.0,0.00018059,2]
[420300158,1775935838479,-227.4499027,0.00018059,2]
[420300159,1775935838499,-772.0,0.00018059,5]
[420300160,1775935838512,-852.0,0.00018059,5]
[420300161,1775935838538,-156.0,0.00018135,2]
[420300162,1775935838552,-184.0,0.00018139,2]
[420300163,1775935838570,-441.0,0.00018139,2]
[420300164,1775935838606,-1557.0,0.0001816,2]
[420300165,1775935838638,-796.13160381,0.00018251,2]
[420300166,1775935838659,-720.46547575,0.00018255,2]
[420300167,1775935838669,-151.0,0.000183,2]
[420300168,1775935838687,-3607.10616337,0.00018301,2]
[420300169,1775935838696,-1168.41864579,0.00018301,2]
[420300170,1775935838708,-59.8260907,0.00018301,2]
[420300171,1775935838723,-500.0,0.00018323,2]
[420300172,1775935838735,-450.87,0.00018378,2]
[420300173,1775935838745,-1557.0,0.00018434,2]
[420300174,1775935838754,-499.999999,0.00018456,2]
[420300175,1775935838765,-796.13160381,0.00018467,2]
[420300176,1775935838778,-341.431353,0.00018493,2]
[420300177,1775935838792,-151.0,0.000185,2]
[420300178,1775935838805,-1000.0,0.000185,2]
[420300179,1775935838815,-151.0,0.00018598,2]
[420300180,1775935838830,-151.0,0.00018598,2]
[420300181,1775935838849,-182.124651,0.00018598,2]
[420300182,1775935838868,-16175.02132786,0.000186,2]
[420300183,1775935838887,-15647.59497463,0.000186,2]